{"text_format":"1","workbook":"xlsx","n_sheets":8,"sheets":["Forside","Fase 1","Fase 2","Fase 3","Fase 4","Fase 5","Fase 6","Projektseminarer"],"not_rendered":{"charts":0,"images":1,"macros":1,"external_links":0,"defined_names":8,"comments":0,"pivot_tables":0},"unopened":[],"bounds":{"document_bytes":16777216,"sheet_cells":100000,"rows_first":2000,"rows_last":500,"rows_between":2000,"halvings":0,"cell_chars":16384,"cell_head_chars":4096},"cells_cut":0,"cells_raw":0,"read":"whole","date_system":"1900"}

{"sheet":"Forside","index":0,"n_rows":38,"n_cols":16,"rows_kept":38,"cut":false,"hidden":false,"merged":[[34,0,34,12],[34,13,34,15],[37,3,37,12],[37,13,37,15],[36,13,36,15],[31,13,31,15],[32,13,32,15],[28,0,28,12],[29,0,29,12],[30,0,30,12],[31,0,31,12],[32,0,32,12],[27,0,27,12],[27,13,27,15],[28,13,28,15],[29,13,29,15],[30,13,30,15],[0,8,0,15],[25,0,25,15],[0,1,0,4],[0,5,0,7],[26,13,26,15]]}
[null,"Budgetskema",null,null,null,"Projekttitel:"]
[]
[]
[]
[]
[]
[]
[]
[]
[]
[]
[]
[]
[]
[]
[]
[]
[]
[]
[]
[]
[]
[]
[]
[]
["Faseopsamling: Opsamling af beløb fra de øvrige faner"]
["Fase nummer",null,null,null,null,null,null,null,null,null,null,null,null,"I alt"]
[{"$f":"CONCATENATE('Fase 1'!D3,\" \",'Fase 1'!E3)","v":"Fase 1: "},null,null,null,null,null,null,null,null,null,null,null,null,{"$f":"'Fase 1'!N24","v":0}]
[{"$f":"CONCATENATE('Fase 2'!D3,\" \",'Fase 2'!E3)","v":"Fase 2: "},null,null,null,null,null,null,null,null,null,null,null,null,{"$f":"'Fase 2'!N24","v":0}]
[{"$f":"CONCATENATE('Fase 3'!D3,\" \",'Fase 3'!E3)","v":"Fase 3: "},null,null,null,null,null,null,null,null,null,null,null,null,{"$f":"'Fase 3'!N24","v":0}]
[{"$f":"CONCATENATE('Fase 4'!D3,\" \",'Fase 4'!E3)","v":"Fase 4: "},null,null,null,null,null,null,null,null,null,null,null,null,{"$f":"'Fase 4'!N24","v":0}]
[{"$f":"CONCATENATE('Fase 5'!D3,\" \",'Fase 5'!E3)","v":"Fase 5: "},null,null,null,null,null,null,null,null,null,null,null,null,{"$f":"'Fase 5'!N24","v":0}]
[{"$f":"CONCATENATE('Fase 6'!D3,\" \",'Fase 6'!E3)","v":"Fase 6: "},null,null,null,null,null,null,null,null,null,null,null,null,{"$f":"'Fase 6'!N24","v":0}]
[{"$f":"Projektseminarer!E3","v":"Projektseminarer"},null,null,null,null,null,null,null,null,null,null,null,null,null,null,{"$f":"Projektseminarer!N19","v":0}]
["Total ansøgt beløb",null,null,null,null,null,null,null,null,null,null,null,null,{"$f":"SUM(N28:P34)","v":0}]
[]
["Eget bidrag",null,null,null,null,null,null,null,null,null,null,null,null,"Skriv beløb"]
["Beskriv art og evt. beløb"]

{"sheet":"Fase 1","index":1,"n_rows":24,"n_cols":33,"rows_kept":24,"cut":false,"hidden":false,"merged":[[6,1,6,3],[0,3,0,6],[0,7,0,9],[0,10,0,13],[2,4,2,7],[4,2,4,4],[11,1,11,3],[7,2,7,3],[7,4,7,5],[7,6,7,7],[7,8,7,12],[8,2,8,3],[8,4,8,5],[8,6,8,7],[8,8,8,12],[9,2,9,3],[9,4,9,5],[9,6,9,7],[9,8,9,12],[10,2,10,12],[17,2,17,6],[17,7,17,12],[12,2,12,4],[12,5,12,6],[12,7,12,12],[13,2,13,4],[13,5,13,6],[13,7,13,12],[14,2,14,4],[14,5,14,6],[14,7,14,12],[15,2,15,12],[16,1,16,3],[23,2,23,7],[23,8,23,12],[18,2,18,6],[18,7,18,12],[19,2,19,6],[19,7,19,12],[20,2,20,7],[20,8,20,12]]}
[null,null,null,"Budgetskema",null,null,null,"Projekttitel:",null,null,{"$f":"IF(Forside!I1=\"\",\"Udfyld venligt projekttitel på forsiden!\",Forside!I1)","v":"Udfyld venligt projekttitel på forsiden!"}]
[]
[null,null,null,"Fase 1:",null,null,null,null,null,"Periode: ","FRA:",null,"TIL:"]
[]
[null,null,null,null,null,null,null,null,null,null,null,null,null,"I alt"]
[]
[null,"Løn/arbejdstid:"]
[null,null,"Navn på institution og medarbejder (Institution/navn)",null,"Antal timer",null,"Takst",null,"Arbejdsopgave"]
[null,null,null,null,null,null,null,null,null,null,null,null,null,{"$f":"IF(G9=\"Folkeskole\",329*E9,0)+IF(G9=\"AMU\",E9*290,0)+IF(G9=\"Erhvervsgymnasier\",E9*337,0)+IF(G9=\"Gymnasier\",E9*367,0)+IF(G9=\"AVU\",E9*328,0)+IF(G9=\"EUD\",E9*307,0)+IF(G9=\"Frie grundskoler\",E9*308,0)+IF(G9=\"Efterskoler\",E9*298,0)+IF(G9=\"Videregående uddannelse (VIP)\",600*E9,0)+IF(G9=\"Studentermedhjælper (HK)\",137.61*E9,0)+IF(G9=\"Studenterundervisere\",245.1*E9,0)+IF(G9=\"Videregående uddannelse (D-VIP og post doc)\",350*E9,0)+IF(G9=\"Honorar\",325*E9,0)+IF(G9=\"IT-studentermedhjælper (PROSA)\",160.64*E9,0)","v":0},null,{"$f":"IF(N9=AG9,\"\",\"RET VENLIGST KUN I DE GRÅ CELLER!\")","v":""},null,null,null,null,null,null,null,null,null,null,null,null,null,null,null,null,{"$f":"IF(G9=\"Folkeskole\",329*E9,0)+IF(G9=\"AMU\",E9*290,0)+IF(G9=\"Erhvervsgymnasier\",E9*337,0)+IF(G9=\"Gymnasier\",E9*367,0)+IF(G9=\"AVU\",E9*328,0)+IF(G9=\"EUD\",E9*307,0)+IF(G9=\"Frie grundskoler\",E9*308,0)+IF(G9=\"Efterskoler\",E9*298,0)+IF(G9=\"Videregående uddannelse (VIP)\",600*E9,0)+IF(G9=\"Studentermedhjælper (HK)\",137.61*E9,0)+IF(G9=\"Studenterundervisere\",245.1*E9,0)+IF(G9=\"Videregående uddannelse (D-VIP og post doc)\",350*E9,0)+IF(G9=\"Honorar\",325*E9,0)+IF(G9=\"IT-studentermedhjælper (PROSA)\",160.64*E9,0)","v":0}]
[null,null,null,null,null,null,null,null,null,null,null,null,null,{"$f":"IF(G10=\"Folkeskole\",329*E10,0)+IF(G10=\"AMU\",E10*290,0)+IF(G10=\"Erhvervsgymnasier\",E10*337,0)+IF(G10=\"Gymnasier\",E10*367,0)+IF(G10=\"AVU\",E10*328,0)+IF(G10=\"EUD\",E10*307,0)+IF(G10=\"Frie grundskoler\",E10*308,0)+IF(G10=\"Efterskoler\",E10*298,0)+IF(G10=\"Videregående uddannelse (VIP)\",600*E10,0)+IF(G10=\"Studentermedhjælper (HK)\",137.61*E10,0)+IF(G10=\"Studenterundervisere\",245.1*E10,0)+IF(G10=\"Videregående uddannelse (D-VIP og post doc)\",350*E10,0)+IF(G10=\"Honorar\",325*E10,0)+IF(G10=\"IT-studentermedhjælper (PROSA)\",160.64*E10,0)","v":0},null,{"$f":"IF(N10=AG10,\"\",\"RET VENLIGST KUN I DE GRÅ CELLER!\")","v":""},null,null,null,null,null,null,null,null,null,null,null,null,null,null,null,null,{"$f":"IF(G10=\"Folkeskole\",329*E10,0)+IF(G10=\"AMU\",E10*290,0)+IF(G10=\"Erhvervsgymnasier\",E10*337,0)+IF(G10=\"Gymnasier\",E10*367,0)+IF(G10=\"AVU\",E10*328,0)+IF(G10=\"EUD\",E10*307,0)+IF(G10=\"Frie grundskoler\",E10*308,0)+IF(G10=\"Efterskoler\",E10*298,0)+IF(G10=\"Videregående uddannelse (VIP)\",600*E10,0)+IF(G10=\"Studentermedhjælper (HK)\",137.61*E10,0)+IF(G10=\"Studenterundervisere\",245.1*E10,0)+IF(G10=\"Videregående uddannelse (D-VIP og post doc)\",350*E10,0)+IF(G10=\"Honorar\",325*E10,0)+IF(G10=\"IT-studentermedhjælper (PROSA)\",160.64*E10,0)","v":0}]
[null,null,"I alt",null,null,null,null,null,null,null,null,null,null,{"$f":"SUM(N9:N10)","v":0}]
[null,"Transport:"]
[null,null,"Hvem rejser?",null,null,"Antal",null,"Begrundelse for rejseomkostninger",null,null,null,null,null,"Skriv beløb"]
[]
[]
[null,null,"I alt",null,null,null,null,null,null,null,null,null,null,{"$f":"SUM(N14:N15)","v":0}]
[null,"Andre udgifter:"]
[null,null,"Udgiftstype",null,null,null,null,"Beskrivelse",null,null,null,null,null,"Skriv beløb"]
[]
[]
[null,null,"I alt",null,null,null,null,null,null,null,null,null,null,{"$f":"SUM(N19:N20)","v":0}]
[]
[null,"Ansøgt beløb fase 1:"]
[null,null,"I alt",null,null,null,null,null,null,null,null,null,null,{"$f":"N11+N16+N21","v":0}]

{"sheet":"Fase 2","index":2,"n_rows":24,"n_cols":33,"rows_kept":24,"cut":false,"hidden":false,"merged":[[23,2,23,7],[23,8,23,12],[18,2,18,6],[18,7,18,12],[19,2,19,6],[19,7,19,12],[20,2,20,7],[20,8,20,12],[17,2,17,6],[17,7,17,12],[12,2,12,4],[12,5,12,6],[12,7,12,12],[13,2,13,4],[13,5,13,6],[13,7,13,12],[14,2,14,4],[14,5,14,6],[14,7,14,12],[15,2,15,12],[16,1,16,3],[11,1,11,3],[7,2,7,3],[7,4,7,5],[7,6,7,7],[7,8,7,12],[8,2,8,3],[8,4,8,5],[8,6,8,7],[8,8,8,12],[9,2,9,3],[9,4,9,5],[9,6,9,7],[9,8,9,12],[10,2,10,12],[6,1,6,3],[0,3,0,6],[0,7,0,9],[0,10,0,13],[2,4,2,7],[4,2,4,4]]}
[null,null,null,"Budgetskema",null,null,null,"Projekttitel:",null,null,{"$f":"IF(Forside!I1=\"\",\"Udfyld venligt projekttitel på forsiden!\",Forside!I1)","v":"Udfyld venligt projekttitel på forsiden!"}]
[]
[null,null,null,"Fase 2:",null,null,null,null,null,"Periode: ","FRA:",null,"TIL:"]
[]
[null,null,null,null,null,null,null,null,null,null,null,null,null,"I alt"]
[]
[null,"Løn/arbejdstid:"]
[null,null,"Navn på institution og medarbejder (Institution/navn)",null,"Antal timer",null,"Takst",null,"Arbejdsopgave"]
[null,null,null,null,null,null,null,null,null,null,null,null,null,{"$f":"IF(G9=\"Folkeskole\",329*E9,0)+IF(G9=\"AMU\",E9*290,0)+IF(G9=\"Erhvervsgymnasier\",E9*337,0)+IF(G9=\"Gymnasier\",E9*367,0)+IF(G9=\"AVU\",E9*328,0)+IF(G9=\"EUD\",E9*307,0)+IF(G9=\"Frie grundskoler\",E9*308,0)+IF(G9=\"Efterskoler\",E9*298,0)+IF(G9=\"Videregående uddannelse (VIP)\",600*E9,0)+IF(G9=\"Studentermedhjælper (HK)\",137.61*E9,0)+IF(G9=\"Studenterundervisere\",245.1*E9,0)+IF(G9=\"Videregående uddannelse (D-VIP og post doc)\",350*E9,0)+IF(G9=\"Honorar\",325*E9,0)+IF(G9=\"IT-studentermedhjælper (PROSA)\",160.64*E9,0)","v":0},null,{"$f":"IF(N9=AG9,\"\",\"RET VENLIGST KUN I DE GRÅ CELLER!\")","v":""},null,null,null,null,null,null,null,null,null,null,null,null,null,null,null,null,{"$f":"IF(G9=\"Folkeskole\",329*E9,0)+IF(G9=\"AMU\",E9*290,0)+IF(G9=\"Erhvervsgymnasier\",E9*337,0)+IF(G9=\"Gymnasier\",E9*367,0)+IF(G9=\"AVU\",E9*328,0)+IF(G9=\"EUD\",E9*307,0)+IF(G9=\"Frie grundskoler\",E9*308,0)+IF(G9=\"Efterskoler\",E9*298,0)+IF(G9=\"Videregående uddannelse (VIP)\",600*E9,0)+IF(G9=\"Studentermedhjælper (HK)\",137.61*E9,0)+IF(G9=\"Studenterundervisere\",245.1*E9,0)+IF(G9=\"Videregående uddannelse (D-VIP og post doc)\",350*E9,0)+IF(G9=\"Honorar\",325*E9,0)+IF(G9=\"IT-studentermedhjælper (PROSA)\",160.64*E9,0)","v":0}]
[null,null,null,null,null,null,null,null,null,null,null,null,null,{"$f":"IF(G10=\"Folkeskole\",329*E10,0)+IF(G10=\"AMU\",E10*290,0)+IF(G10=\"Erhvervsgymnasier\",E10*337,0)+IF(G10=\"Gymnasier\",E10*367,0)+IF(G10=\"AVU\",E10*328,0)+IF(G10=\"EUD\",E10*307,0)+IF(G10=\"Frie grundskoler\",E10*308,0)+IF(G10=\"Efterskoler\",E10*298,0)+IF(G10=\"Videregående uddannelse (VIP)\",600*E10,0)+IF(G10=\"Studentermedhjælper (HK)\",137.61*E10,0)+IF(G10=\"Studenterundervisere\",245.1*E10,0)+IF(G10=\"Videregående uddannelse (D-VIP og post doc)\",350*E10,0)+IF(G10=\"Honorar\",325*E10,0)+IF(G10=\"IT-studentermedhjælper (PROSA)\",160.64*E10,0)","v":0},null,{"$f":"IF(N10=AG10,\"\",\"RET VENLIGST KUN I DE GRÅ CELLER!\")","v":""},null,null,null,null,null,null,null,null,null,null,null,null,null,null,null,null,{"$f":"IF(G10=\"Folkeskole\",329*E10,0)+IF(G10=\"AMU\",E10*290,0)+IF(G10=\"Erhvervsgymnasier\",E10*337,0)+IF(G10=\"Gymnasier\",E10*367,0)+IF(G10=\"AVU\",E10*328,0)+IF(G10=\"EUD\",E10*307,0)+IF(G10=\"Frie grundskoler\",E10*308,0)+IF(G10=\"Efterskoler\",E10*298,0)+IF(G10=\"Videregående uddannelse (VIP)\",600*E10,0)+IF(G10=\"Studentermedhjælper (HK)\",137.61*E10,0)+IF(G10=\"Studenterundervisere\",245.1*E10,0)+IF(G10=\"Videregående uddannelse (D-VIP og post doc)\",350*E10,0)+IF(G10=\"Honorar\",325*E10,0)+IF(G10=\"IT-studentermedhjælper (PROSA)\",160.64*E10,0)","v":0}]
[null,null,"I alt",null,null,null,null,null,null,null,null,null,null,{"$f":"SUM(N9:N10)","v":0}]
[null,"Transport:"]
[null,null,"Hvem rejser?",null,null,"Antal",null,"Begrundelse for rejseomkostninger",null,null,null,null,null,"Skriv beløb"]
[]
[]
[null,null,"I alt",null,null,null,null,null,null,null,null,null,null,{"$f":"SUM(N14:N15)","v":0}]
[null,"Andre udgifter:"]
[null,null,"Udgiftstype",null,null,null,null,"Beskrivelse",null,null,null,null,null,"Skriv beløb"]
[]
[]
[null,null,"I alt",null,null,null,null,null,null,null,null,null,null,{"$f":"SUM(N19:N20)","v":0}]
[]
[null,"Ansøgt beløb fase 2:"]
[null,null,"I alt",null,null,null,null,null,null,null,null,null,null,{"$f":"N11+N16+N21","v":0}]

{"sheet":"Fase 3","index":3,"n_rows":24,"n_cols":33,"rows_kept":24,"cut":false,"hidden":false,"merged":[[23,2,23,7],[23,8,23,12],[18,2,18,6],[18,7,18,12],[19,2,19,6],[19,7,19,12],[20,2,20,7],[20,8,20,12],[17,2,17,6],[17,7,17,12],[12,2,12,4],[12,5,12,6],[12,7,12,12],[13,2,13,4],[13,5,13,6],[13,7,13,12],[14,2,14,4],[14,5,14,6],[14,7,14,12],[15,2,15,12],[16,1,16,3],[11,1,11,3],[7,2,7,3],[7,4,7,5],[7,6,7,7],[7,8,7,12],[8,2,8,3],[8,4,8,5],[8,6,8,7],[8,8,8,12],[9,2,9,3],[9,4,9,5],[9,6,9,7],[9,8,9,12],[10,2,10,12],[6,1,6,3],[0,3,0,6],[0,7,0,9],[0,10,0,13],[2,4,2,7],[4,2,4,4]]}
[null,null,null,"Budgetskema",null,null,null,"Projekttitel:",null,null,{"$f":"IF(Forside!I1=\"\",\"Udfyld venligt projekttitel på forsiden!\",Forside!I1)","v":"Udfyld venligt projekttitel på forsiden!"}]
[]
[null,null,null,"Fase 3:",null,null,null,null,null,"Periode: ","FRA:",null,"TIL:"]
[]
[null,null,null,null,null,null,null,null,null,null,null,null,null,"I alt"]
[]
[null,"Løn/arbejdstid:"]
[null,null,"Navn på institution og medarbejder (Institution/navn)",null,"Antal timer",null,"Takst",null,"Arbejdsopgave"]
[null,null,null,null,null,null,null,null,null,null,null,null,null,{"$f":"IF(G9=\"Folkeskole\",329*E9,0)+IF(G9=\"AMU\",E9*290,0)+IF(G9=\"Erhvervsgymnasier\",E9*337,0)+IF(G9=\"Gymnasier\",E9*367,0)+IF(G9=\"AVU\",E9*328,0)+IF(G9=\"EUD\",E9*307,0)+IF(G9=\"Frie grundskoler\",E9*308,0)+IF(G9=\"Efterskoler\",E9*298,0)+IF(G9=\"Videregående uddannelse (VIP)\",600*E9,0)+IF(G9=\"Studentermedhjælper (HK)\",137.61*E9,0)+IF(G9=\"Studenterundervisere\",245.1*E9,0)+IF(G9=\"Videregående uddannelse (D-VIP og post doc)\",350*E9,0)+IF(G9=\"Honorar\",325*E9,0)+IF(G9=\"IT-studentermedhjælper (PROSA)\",160.64*E9,0)","v":0},null,{"$f":"IF(N9=AG9,\"\",\"RET VENLIGST KUN I DE GRÅ CELLER!\")","v":""},null,null,null,null,null,null,null,null,null,null,null,null,null,null,null,null,{"$f":"IF(G9=\"Folkeskole\",329*E9,0)+IF(G9=\"AMU\",E9*290,0)+IF(G9=\"Erhvervsgymnasier\",E9*337,0)+IF(G9=\"Gymnasier\",E9*367,0)+IF(G9=\"AVU\",E9*328,0)+IF(G9=\"EUD\",E9*307,0)+IF(G9=\"Frie grundskoler\",E9*308,0)+IF(G9=\"Efterskoler\",E9*298,0)+IF(G9=\"Videregående uddannelse (VIP)\",600*E9,0)+IF(G9=\"Studentermedhjælper (HK)\",137.61*E9,0)+IF(G9=\"Studenterundervisere\",245.1*E9,0)+IF(G9=\"Videregående uddannelse (D-VIP og post doc)\",350*E9,0)+IF(G9=\"Honorar\",325*E9,0)+IF(G9=\"IT-studentermedhjælper (PROSA)\",160.64*E9,0)","v":0}]
[null,null,null,null,null,null,null,null,null,null,null,null,null,{"$f":"IF(G10=\"Folkeskole\",329*E10,0)+IF(G10=\"AMU\",E10*290,0)+IF(G10=\"Erhvervsgymnasier\",E10*337,0)+IF(G10=\"Gymnasier\",E10*367,0)+IF(G10=\"AVU\",E10*328,0)+IF(G10=\"EUD\",E10*307,0)+IF(G10=\"Frie grundskoler\",E10*308,0)+IF(G10=\"Efterskoler\",E10*298,0)+IF(G10=\"Videregående uddannelse (VIP)\",600*E10,0)+IF(G10=\"Studentermedhjælper (HK)\",137.61*E10,0)+IF(G10=\"Studenterundervisere\",245.1*E10,0)+IF(G10=\"Videregående uddannelse (D-VIP og post doc)\",350*E10,0)+IF(G10=\"Honorar\",325*E10,0)+IF(G10=\"IT-studentermedhjælper (PROSA)\",160.64*E10,0)","v":0},null,{"$f":"IF(N10=AG10,\"\",\"RET VENLIGST KUN I DE GRÅ CELLER!\")","v":""},null,null,null,null,null,null,null,null,null,null,null,null,null,null,null,null,{"$f":"IF(G10=\"Folkeskole\",329*E10,0)+IF(G10=\"AMU\",E10*290,0)+IF(G10=\"Erhvervsgymnasier\",E10*337,0)+IF(G10=\"Gymnasier\",E10*367,0)+IF(G10=\"AVU\",E10*328,0)+IF(G10=\"EUD\",E10*307,0)+IF(G10=\"Frie grundskoler\",E10*308,0)+IF(G10=\"Efterskoler\",E10*298,0)+IF(G10=\"Videregående uddannelse (VIP)\",600*E10,0)+IF(G10=\"Studentermedhjælper (HK)\",137.61*E10,0)+IF(G10=\"Studenterundervisere\",245.1*E10,0)+IF(G10=\"Videregående uddannelse (D-VIP og post doc)\",350*E10,0)+IF(G10=\"Honorar\",325*E10,0)+IF(G10=\"IT-studentermedhjælper (PROSA)\",160.64*E10,0)","v":0}]
[null,null,"I alt",null,null,null,null,null,null,null,null,null,null,{"$f":"SUM(N9:N10)","v":0}]
[null,"Transport:"]
[null,null,"Hvem rejser?",null,null,"Antal",null,"Begrundelse for rejseomkostninger",null,null,null,null,null,"Skriv beløb"]
[]
[]
[null,null,"I alt",null,null,null,null,null,null,null,null,null,null,{"$f":"SUM(N14:N15)","v":0}]
[null,"Andre udgifter:"]
[null,null,"Udgiftstype",null,null,null,null,"Beskrivelse",null,null,null,null,null,"Skriv beløb"]
[]
[]
[null,null,"I alt",null,null,null,null,null,null,null,null,null,null,{"$f":"SUM(N19:N20)","v":0}]
[]
[null,"Ansøgt beløb fase 3:"]
[null,null,"I alt",null,null,null,null,null,null,null,null,null,null,{"$f":"N11+N16+N21","v":0}]

{"sheet":"Fase 4","index":4,"n_rows":24,"n_cols":33,"rows_kept":24,"cut":false,"hidden":false,"merged":[[23,2,23,7],[23,8,23,12],[18,2,18,6],[18,7,18,12],[19,2,19,6],[19,7,19,12],[20,2,20,7],[20,8,20,12],[17,2,17,6],[17,7,17,12],[12,2,12,4],[12,5,12,6],[12,7,12,12],[13,2,13,4],[13,5,13,6],[13,7,13,12],[14,2,14,4],[14,5,14,6],[14,7,14,12],[15,2,15,12],[16,1,16,3],[11,1,11,3],[7,2,7,3],[7,4,7,5],[7,6,7,7],[7,8,7,12],[8,2,8,3],[8,4,8,5],[8,6,8,7],[8,8,8,12],[9,2,9,3],[9,4,9,5],[9,6,9,7],[9,8,9,12],[10,2,10,12],[6,1,6,3],[0,3,0,6],[0,7,0,9],[0,10,0,13],[2,4,2,7],[4,2,4,4]]}
[null,null,null,"Budgetskema",null,null,null,"Projekttitel:",null,null,{"$f":"IF(Forside!I1=\"\",\"Udfyld venligt projekttitel på forsiden!\",Forside!I1)","v":"Udfyld venligt projekttitel på forsiden!"}]
[]
[null,null,null,"Fase 4:",null,null,null,null,null,"Periode: ","FRA:",null,"TIL:"]
[]
[null,null,null,null,null,null,null,null,null,null,null,null,null,"I alt"]
[]
[null,"Løn/arbejdstid:"]
[null,null,"Navn på institution og medarbejder (Institution/navn)",null,"Antal timer",null,"Takst",null,"Arbejdsopgave"]
[null,null,null,null,null,null,null,null,null,null,null,null,null,{"$f":"IF(G9=\"Folkeskole\",329*E9,0)+IF(G9=\"AMU\",E9*290,0)+IF(G9=\"Erhvervsgymnasier\",E9*337,0)+IF(G9=\"Gymnasier\",E9*367,0)+IF(G9=\"AVU\",E9*328,0)+IF(G9=\"EUD\",E9*307,0)+IF(G9=\"Frie grundskoler\",E9*308,0)+IF(G9=\"Efterskoler\",E9*298,0)+IF(G9=\"Videregående uddannelse (VIP)\",600*E9,0)+IF(G9=\"Studentermedhjælper (HK)\",137.61*E9,0)+IF(G9=\"Studenterundervisere\",245.1*E9,0)+IF(G9=\"Videregående uddannelse (D-VIP og post doc)\",350*E9,0)+IF(G9=\"Honorar\",325*E9,0)+IF(G9=\"IT-studentermedhjælper (PROSA)\",160.64*E9,0)","v":0},null,{"$f":"IF(N9=AG9,\"\",\"RET VENLIGST KUN I DE GRÅ CELLER!\")","v":""},null,null,null,null,null,null,null,null,null,null,null,null,null,null,null,null,{"$f":"IF(G9=\"Folkeskole\",329*E9,0)+IF(G9=\"AMU\",E9*290,0)+IF(G9=\"Erhvervsgymnasier\",E9*337,0)+IF(G9=\"Gymnasier\",E9*367,0)+IF(G9=\"AVU\",E9*328,0)+IF(G9=\"EUD\",E9*307,0)+IF(G9=\"Frie grundskoler\",E9*308,0)+IF(G9=\"Efterskoler\",E9*298,0)+IF(G9=\"Videregående uddannelse (VIP)\",600*E9,0)+IF(G9=\"Studentermedhjælper (HK)\",137.61*E9,0)+IF(G9=\"Studenterundervisere\",245.1*E9,0)+IF(G9=\"Videregående uddannelse (D-VIP og post doc)\",350*E9,0)+IF(G9=\"Honorar\",325*E9,0)+IF(G9=\"IT-studentermedhjælper (PROSA)\",160.64*E9,0)","v":0}]
[null,null,null,null,null,null,null,null,null,null,null,null,null,{"$f":"IF(G10=\"Folkeskole\",329*E10,0)+IF(G10=\"AMU\",E10*290,0)+IF(G10=\"Erhvervsgymnasier\",E10*337,0)+IF(G10=\"Gymnasier\",E10*367,0)+IF(G10=\"AVU\",E10*328,0)+IF(G10=\"EUD\",E10*307,0)+IF(G10=\"Frie grundskoler\",E10*308,0)+IF(G10=\"Efterskoler\",E10*298,0)+IF(G10=\"Videregående uddannelse (VIP)\",600*E10,0)+IF(G10=\"Studentermedhjælper (HK)\",137.61*E10,0)+IF(G10=\"Studenterundervisere\",245.1*E10,0)+IF(G10=\"Videregående uddannelse (D-VIP og post doc)\",350*E10,0)+IF(G10=\"Honorar\",325*E10,0)+IF(G10=\"IT-studentermedhjælper (PROSA)\",160.64*E10,0)","v":0},null,{"$f":"IF(N10=AG10,\"\",\"RET VENLIGST KUN I DE GRÅ CELLER!\")","v":""},null,null,null,null,null,null,null,null,null,null,null,null,null,null,null,null,{"$f":"IF(G10=\"Folkeskole\",329*E10,0)+IF(G10=\"AMU\",E10*290,0)+IF(G10=\"Erhvervsgymnasier\",E10*337,0)+IF(G10=\"Gymnasier\",E10*367,0)+IF(G10=\"AVU\",E10*328,0)+IF(G10=\"EUD\",E10*307,0)+IF(G10=\"Frie grundskoler\",E10*308,0)+IF(G10=\"Efterskoler\",E10*298,0)+IF(G10=\"Videregående uddannelse (VIP)\",600*E10,0)+IF(G10=\"Studentermedhjælper (HK)\",137.61*E10,0)+IF(G10=\"Studenterundervisere\",245.1*E10,0)+IF(G10=\"Videregående uddannelse (D-VIP og post doc)\",350*E10,0)+IF(G10=\"Honorar\",325*E10,0)+IF(G10=\"IT-studentermedhjælper (PROSA)\",160.64*E10,0)","v":0}]
[null,null,"I alt",null,null,null,null,null,null,null,null,null,null,{"$f":"SUM(N9:N10)","v":0}]
[null,"Transport:"]
[null,null,"Hvem rejser?",null,null,"Antal",null,"Begrundelse for rejseomkostninger",null,null,null,null,null,"Skriv beløb"]
[]
[]
[null,null,"I alt",null,null,null,null,null,null,null,null,null,null,{"$f":"SUM(N14:N15)","v":0}]
[null,"Andre udgifter:"]
[null,null,"Udgiftstype",null,null,null,null,"Beskrivelse",null,null,null,null,null,"Skriv beløb"]
[]
[]
[null,null,"I alt",null,null,null,null,null,null,null,null,null,null,{"$f":"SUM(N19:N20)","v":0}]
[]
[null,"Ansøgt beløb fase 4:"]
[null,null,"I alt",null,null,null,null,null,null,null,null,null,null,{"$f":"N11+N16+N21","v":0}]

{"sheet":"Fase 5","index":5,"n_rows":24,"n_cols":33,"rows_kept":24,"cut":false,"hidden":false,"merged":[[23,2,23,7],[23,8,23,12],[18,2,18,6],[18,7,18,12],[19,2,19,6],[19,7,19,12],[20,2,20,7],[20,8,20,12],[17,2,17,6],[17,7,17,12],[12,2,12,4],[12,5,12,6],[12,7,12,12],[13,2,13,4],[13,5,13,6],[13,7,13,12],[14,2,14,4],[14,5,14,6],[14,7,14,12],[15,2,15,12],[16,1,16,3],[11,1,11,3],[7,2,7,3],[7,4,7,5],[7,6,7,7],[7,8,7,12],[8,2,8,3],[8,4,8,5],[8,6,8,7],[8,8,8,12],[9,2,9,3],[9,4,9,5],[9,6,9,7],[9,8,9,12],[10,2,10,12],[6,1,6,3],[0,3,0,6],[0,7,0,9],[0,10,0,13],[2,4,2,7],[4,2,4,4]]}
[null,null,null,"Budgetskema",null,null,null,"Projekttitel:",null,null,{"$f":"IF(Forside!I1=\"\",\"Udfyld venligt projekttitel på forsiden!\",Forside!I1)","v":"Udfyld venligt projekttitel på forsiden!"}]
[]
[null,null,null,"Fase 5:",null,null,null,null,null,"Periode: ","FRA:",null,"TIL:"]
[]
[null,null,null,null,null,null,null,null,null,null,null,null,null,"I alt"]
[]
[null,"Løn/arbejdstid:"]
[null,null,"Navn på institution og medarbejder (Institution/navn)",null,"Antal timer",null,"Takst",null,"Arbejdsopgave"]
[null,null,null,null,null,null,null,null,null,null,null,null,null,{"$f":"IF(G9=\"Folkeskole\",329*E9,0)+IF(G9=\"AMU\",E9*290,0)+IF(G9=\"Erhvervsgymnasier\",E9*337,0)+IF(G9=\"Gymnasier\",E9*367,0)+IF(G9=\"AVU\",E9*328,0)+IF(G9=\"EUD\",E9*307,0)+IF(G9=\"Frie grundskoler\",E9*308,0)+IF(G9=\"Efterskoler\",E9*298,0)+IF(G9=\"Videregående uddannelse (VIP)\",600*E9,0)+IF(G9=\"Studentermedhjælper (HK)\",137.61*E9,0)+IF(G9=\"Studenterundervisere\",245.1*E9,0)+IF(G9=\"Videregående uddannelse (D-VIP og post doc)\",350*E9,0)+IF(G9=\"Honorar\",325*E9,0)+IF(G9=\"IT-studentermedhjælper (PROSA)\",160.64*E9,0)","v":0},null,{"$f":"IF(N9=AG9,\"\",\"RET VENLIGST KUN I DE GRÅ CELLER!\")","v":""},null,null,null,null,null,null,null,null,null,null,null,null,null,null,null,null,{"$f":"IF(G9=\"Folkeskole\",329*E9,0)+IF(G9=\"AMU\",E9*290,0)+IF(G9=\"Erhvervsgymnasier\",E9*337,0)+IF(G9=\"Gymnasier\",E9*367,0)+IF(G9=\"AVU\",E9*328,0)+IF(G9=\"EUD\",E9*307,0)+IF(G9=\"Frie grundskoler\",E9*308,0)+IF(G9=\"Efterskoler\",E9*298,0)+IF(G9=\"Videregående uddannelse (VIP)\",600*E9,0)+IF(G9=\"Studentermedhjælper (HK)\",137.61*E9,0)+IF(G9=\"Studenterundervisere\",245.1*E9,0)+IF(G9=\"Videregående uddannelse (D-VIP og post doc)\",350*E9,0)+IF(G9=\"Honorar\",325*E9,0)+IF(G9=\"IT-studentermedhjælper (PROSA)\",160.64*E9,0)","v":0}]
[null,null,null,null,null,null,null,null,null,null,null,null,null,{"$f":"IF(G10=\"Folkeskole\",329*E10,0)+IF(G10=\"AMU\",E10*290,0)+IF(G10=\"Erhvervsgymnasier\",E10*337,0)+IF(G10=\"Gymnasier\",E10*367,0)+IF(G10=\"AVU\",E10*328,0)+IF(G10=\"EUD\",E10*307,0)+IF(G10=\"Frie grundskoler\",E10*308,0)+IF(G10=\"Efterskoler\",E10*298,0)+IF(G10=\"Videregående uddannelse (VIP)\",600*E10,0)+IF(G10=\"Studentermedhjælper (HK)\",137.61*E10,0)+IF(G10=\"Studenterundervisere\",245.1*E10,0)+IF(G10=\"Videregående uddannelse (D-VIP og post doc)\",350*E10,0)+IF(G10=\"Honorar\",325*E10,0)+IF(G10=\"IT-studentermedhjælper (PROSA)\",160.64*E10,0)","v":0},null,{"$f":"IF(N10=AG10,\"\",\"RET VENLIGST KUN I DE GRÅ CELLER!\")","v":""},null,null,null,null,null,null,null,null,null,null,null,null,null,null,null,null,{"$f":"IF(G10=\"Folkeskole\",329*E10,0)+IF(G10=\"AMU\",E10*290,0)+IF(G10=\"Erhvervsgymnasier\",E10*337,0)+IF(G10=\"Gymnasier\",E10*367,0)+IF(G10=\"AVU\",E10*328,0)+IF(G10=\"EUD\",E10*307,0)+IF(G10=\"Frie grundskoler\",E10*308,0)+IF(G10=\"Efterskoler\",E10*298,0)+IF(G10=\"Videregående uddannelse (VIP)\",600*E10,0)+IF(G10=\"Studentermedhjælper (HK)\",137.61*E10,0)+IF(G10=\"Studenterundervisere\",245.1*E10,0)+IF(G10=\"Videregående uddannelse (D-VIP og post doc)\",350*E10,0)+IF(G10=\"Honorar\",325*E10,0)+IF(G10=\"IT-studentermedhjælper (PROSA)\",160.64*E10,0)","v":0}]
[null,null,"I alt",null,null,null,null,null,null,null,null,null,null,{"$f":"SUM(N9:N10)","v":0}]
[null,"Transport:"]
[null,null,"Hvem rejser?",null,null,"Antal",null,"Begrundelse for rejseomkostninger",null,null,null,null,null,"Skriv beløb"]
[]
[]
[null,null,"I alt",null,null,null,null,null,null,null,null,null,null,{"$f":"SUM(N14:N15)","v":0}]
[null,"Andre udgifter:"]
[null,null,"Udgiftstype",null,null,null,null,"Beskrivelse",null,null,null,null,null,"Skriv beløb"]
[]
[]
[null,null,"I alt",null,null,null,null,null,null,null,null,null,null,{"$f":"SUM(N19:N20)","v":0}]
[]
[null,"Ansøgt beløb fase 5:"]
[null,null,"I alt",null,null,null,null,null,null,null,null,null,null,{"$f":"N11+N16+N21","v":0}]

{"sheet":"Fase 6","index":6,"n_rows":24,"n_cols":33,"rows_kept":24,"cut":false,"hidden":false,"merged":[[23,2,23,7],[23,8,23,12],[18,2,18,6],[18,7,18,12],[19,2,19,6],[19,7,19,12],[20,2,20,7],[20,8,20,12],[17,2,17,6],[17,7,17,12],[12,2,12,4],[12,5,12,6],[12,7,12,12],[13,2,13,4],[13,5,13,6],[13,7,13,12],[14,2,14,4],[14,5,14,6],[14,7,14,12],[15,2,15,12],[16,1,16,3],[11,1,11,3],[7,2,7,3],[7,4,7,5],[7,6,7,7],[7,8,7,12],[8,2,8,3],[8,4,8,5],[8,6,8,7],[8,8,8,12],[9,2,9,3],[9,4,9,5],[9,6,9,7],[9,8,9,12],[10,2,10,12],[6,1,6,3],[0,3,0,6],[0,7,0,9],[0,10,0,13],[2,4,2,7],[4,2,4,4]]}
[null,null,null,"Budgetskema",null,null,null,"Projekttitel:",null,null,{"$f":"IF(Forside!I1=\"\",\"Udfyld venligt projekttitel på forsiden!\",Forside!I1)","v":"Udfyld venligt projekttitel på forsiden!"}]
[]
[null,null,null,"Fase 6:",null,null,null,null,null,"Periode: ","FRA:",null,"TIL:"]
[]
[null,null,null,null,null,null,null,null,null,null,null,null,null,"I alt"]
[]
[null,"Løn/arbejdstid:"]
[null,null,"Navn på institution og medarbejder (Institution/navn)",null,"Antal timer",null,"Takst",null,"Arbejdsopgave"]
[null,null,null,null,null,null,null,null,null,null,null,null,null,{"$f":"IF(G9=\"Folkeskole\",329*E9,0)+IF(G9=\"AMU\",E9*290,0)+IF(G9=\"Erhvervsgymnasier\",E9*337,0)+IF(G9=\"Gymnasier\",E9*367,0)+IF(G9=\"AVU\",E9*328,0)+IF(G9=\"EUD\",E9*307,0)+IF(G9=\"Frie grundskoler\",E9*308,0)+IF(G9=\"Efterskoler\",E9*298,0)+IF(G9=\"Videregående uddannelse (VIP)\",600*E9,0)+IF(G9=\"Studentermedhjælper (HK)\",137.61*E9,0)+IF(G9=\"Studenterundervisere\",245.1*E9,0)+IF(G9=\"Videregående uddannelse (D-VIP og post doc)\",350*E9,0)+IF(G9=\"Honorar\",325*E9,0)+IF(G9=\"IT-studentermedhjælper (PROSA)\",160.64*E9,0)","v":0},null,{"$f":"IF(N9=AG9,\"\",\"RET VENLIGST KUN I DE GRÅ CELLER!\")","v":""},null,null,null,null,null,null,null,null,null,null,null,null,null,null,null,null,{"$f":"IF(G9=\"Folkeskole\",329*E9,0)+IF(G9=\"AMU\",E9*290,0)+IF(G9=\"Erhvervsgymnasier\",E9*337,0)+IF(G9=\"Gymnasier\",E9*367,0)+IF(G9=\"AVU\",E9*328,0)+IF(G9=\"EUD\",E9*307,0)+IF(G9=\"Frie grundskoler\",E9*308,0)+IF(G9=\"Efterskoler\",E9*298,0)+IF(G9=\"Videregående uddannelse (VIP)\",600*E9,0)+IF(G9=\"Studentermedhjælper (HK)\",137.61*E9,0)+IF(G9=\"Studenterundervisere\",245.1*E9,0)+IF(G9=\"Videregående uddannelse (D-VIP og post doc)\",350*E9,0)+IF(G9=\"Honorar\",325*E9,0)+IF(G9=\"IT-studentermedhjælper (PROSA)\",160.64*E9,0)","v":0}]
[null,null,null,null,null,null,null,null,null,null,null,null,null,{"$f":"IF(G10=\"Folkeskole\",329*E10,0)+IF(G10=\"AMU\",E10*290,0)+IF(G10=\"Erhvervsgymnasier\",E10*337,0)+IF(G10=\"Gymnasier\",E10*367,0)+IF(G10=\"AVU\",E10*328,0)+IF(G10=\"EUD\",E10*307,0)+IF(G10=\"Frie grundskoler\",E10*308,0)+IF(G10=\"Efterskoler\",E10*298,0)+IF(G10=\"Videregående uddannelse (VIP)\",600*E10,0)+IF(G10=\"Studentermedhjælper (HK)\",137.61*E10,0)+IF(G10=\"Studenterundervisere\",245.1*E10,0)+IF(G10=\"Videregående uddannelse (D-VIP og post doc)\",350*E10,0)+IF(G10=\"Honorar\",325*E10,0)+IF(G10=\"IT-studentermedhjælper (PROSA)\",160.64*E10,0)","v":0},null,{"$f":"IF(N10=AG10,\"\",\"RET VENLIGST KUN I DE GRÅ CELLER!\")","v":""},null,null,null,null,null,null,null,null,null,null,null,null,null,null,null,null,{"$f":"IF(G10=\"Folkeskole\",329*E10,0)+IF(G10=\"AMU\",E10*290,0)+IF(G10=\"Erhvervsgymnasier\",E10*337,0)+IF(G10=\"Gymnasier\",E10*367,0)+IF(G10=\"AVU\",E10*328,0)+IF(G10=\"EUD\",E10*307,0)+IF(G10=\"Frie grundskoler\",E10*308,0)+IF(G10=\"Efterskoler\",E10*298,0)+IF(G10=\"Videregående uddannelse (VIP)\",600*E10,0)+IF(G10=\"Studentermedhjælper (HK)\",137.61*E10,0)+IF(G10=\"Studenterundervisere\",245.1*E10,0)+IF(G10=\"Videregående uddannelse (D-VIP og post doc)\",350*E10,0)+IF(G10=\"Honorar\",325*E10,0)+IF(G10=\"IT-studentermedhjælper (PROSA)\",160.64*E10,0)","v":0}]
[null,null,"I alt",null,null,null,null,null,null,null,null,null,null,{"$f":"SUM(N9:N10)","v":0}]
[null,"Transport:"]
[null,null,"Hvem rejser?",null,null,"Antal",null,"Begrundelse for rejseomkostninger",null,null,null,null,null,"Skriv beløb"]
[]
[]
[null,null,"I alt",null,null,null,null,null,null,null,null,null,null,{"$f":"SUM(N14:N15)","v":0}]
[null,"Andre udgifter:"]
[null,null,"Udgiftstype",null,null,null,null,"Beskrivelse",null,null,null,null,null,"Skriv beløb"]
[]
[]
[null,null,"I alt",null,null,null,null,null,null,null,null,null,null,{"$f":"SUM(N19:N20)","v":0}]
[]
[null,"Ansøgt beløb fase 6:"]
[null,null,"I alt",null,null,null,null,null,null,null,null,null,null,{"$f":"N11+N16+N21","v":0}]

{"sheet":"Projektseminarer","index":7,"n_rows":19,"n_cols":33,"rows_kept":19,"cut":false,"hidden":false,"merged":[[18,2,18,7],[18,8,18,12],[5,1,5,12],[14,2,14,4],[14,5,14,6],[14,7,14,12],[15,2,15,12],[12,2,12,4],[12,5,12,6],[12,7,12,12],[13,2,13,4],[13,5,13,6],[13,7,13,12],[9,2,9,3],[9,4,9,5],[9,6,9,7],[9,8,9,12],[10,2,10,12],[11,1,11,3],[7,2,7,3],[7,4,7,5],[7,6,7,7],[7,8,7,12],[8,2,8,3],[8,4,8,5],[8,6,8,7],[8,8,8,12],[6,1,6,3],[0,3,0,6],[0,7,0,9],[0,10,0,13],[2,4,2,7],[4,2,4,4]]}
[null,null,null,"Budgetskema",null,null,null,"Projekttitel:",null,null,{"$f":"IF(Forside!I1=\"\",\"Udfyld venligt projekttitel på forsiden!\",Forside!I1)","v":"Udfyld venligt projekttitel på forsiden!"}]
[]
[null,null,null,null,"Projektseminarer"]
[]
[null,null,null,null,null,null,null,null,null,null,null,null,null,"I alt"]
[null,"NCFF afholder årligt to projektseminarer. Kontaktpersonen fra den projektansvarlige organisation for alle NCFF-støttede projekter skal deltage i 1-2 projektseminarer i løbet af eller i umiddelbar forlængelse af projektperioden. Projekter af en varighed på 12 måneder og mindre skal deltage i ét projektseminar, mens projekter, der varer mere end 12 måneder, skal deltage i to seminarer. NCFF giver til deltagelse i seminarerne 10 timer for projekter med 6-12 måneders varighed og 20 timer til projekter af mere end 12 måneders varighed. NCFF dækker transportudgifter i forbindelse med seminarerne. Ved projekter af et vist omfang kan der ansøges om timer til mere end en projektperson til deltagelse i projektseminaret. \nLæs mere om projektseminarerne på: https://ncff.dk/projekter/saadan-soeger-du/ under punktet \"Budget\"."]
[null,"Løn/arbejdstid:"]
[null,null,"Navn på institution og medarbejder (Institution/navn)",null,"Antal timer",null,"Takst",null,"Arbejdsopgave"]
[null,null,null,null,null,null,null,null,null,null,null,null,null,{"$f":"IF(G9=\"Folkeskole\",329*E9,0)+IF(G9=\"AMU\",E9*290,0)+IF(G9=\"Erhvervsgymnasier\",E9*337,0)+IF(G9=\"Gymnasier\",E9*367,0)+IF(G9=\"AVU\",E9*328,0)+IF(G9=\"EUD\",E9*307,0)+IF(G9=\"Frie grundskoler\",E9*308,0)+IF(G9=\"Efterskoler\",E9*298,0)+IF(G9=\"Videregående uddannelse (VIP)\",600*E9,0)+IF(G9=\"Studentermedhjælper (HK)\",137.61*E9,0)+IF(G9=\"Studenterundervisere\",245.1*E9,0)+IF(G9=\"Videregående uddannelse (D-VIP og post doc)\",350*E9,0)+IF(G9=\"Honorar\",325*E9,0)+IF(G9=\"IT-studentermedhjælper (PROSA)\",160.64*E9,0)","v":0},null,{"$f":"IF(N9=AG9,\"\",\"RET VENLIGST KUN I DE GRÅ CELLER!\")","v":""},null,null,null,null,null,null,null,null,null,null,null,null,null,null,null,null,{"$f":"IF(G9=\"Folkeskole\",329*E9,0)+IF(G9=\"AMU\",E9*290,0)+IF(G9=\"Erhvervsgymnasier\",E9*337,0)+IF(G9=\"Gymnasier\",E9*367,0)+IF(G9=\"AVU\",E9*328,0)+IF(G9=\"EUD\",E9*307,0)+IF(G9=\"Frie grundskoler\",E9*308,0)+IF(G9=\"Efterskoler\",E9*298,0)+IF(G9=\"Videregående uddannelse (VIP)\",600*E9,0)+IF(G9=\"Studentermedhjælper (HK)\",137.61*E9,0)+IF(G9=\"Studenterundervisere\",245.1*E9,0)+IF(G9=\"Videregående uddannelse (D-VIP og post doc)\",350*E9,0)+IF(G9=\"Honorar\",325*E9,0)+IF(G9=\"IT-studentermedhjælper (PROSA)\",160.64*E9,0)","v":0}]
[null,null,null,null,null,null,null,null,null,null,null,null,null,{"$f":"IF(G10=\"Folkeskole\",329*E10,0)+IF(G10=\"AMU\",E10*290,0)+IF(G10=\"Erhvervsgymnasier\",E10*337,0)+IF(G10=\"Gymnasier\",E10*367,0)+IF(G10=\"AVU\",E10*328,0)+IF(G10=\"EUD\",E10*307,0)+IF(G10=\"Frie grundskoler\",E10*308,0)+IF(G10=\"Efterskoler\",E10*298,0)+IF(G10=\"Videregående uddannelse (VIP)\",600*E10,0)+IF(G10=\"Studentermedhjælper (HK)\",137.61*E10,0)+IF(G10=\"Studenterundervisere\",245.1*E10,0)+IF(G10=\"Videregående uddannelse (D-VIP og post doc)\",350*E10,0)+IF(G10=\"Honorar\",325*E10,0)+IF(G10=\"IT-studentermedhjælper (PROSA)\",160.64*E10,0)","v":0},null,{"$f":"IF(N10=AG10,\"\",\"RET VENLIGST KUN I DE GRÅ CELLER!\")","v":""},null,null,null,null,null,null,null,null,null,null,null,null,null,null,null,null,{"$f":"IF(G10=\"Folkeskole\",329*E10,0)+IF(G10=\"AMU\",E10*290,0)+IF(G10=\"Erhvervsgymnasier\",E10*337,0)+IF(G10=\"Gymnasier\",E10*367,0)+IF(G10=\"AVU\",E10*328,0)+IF(G10=\"EUD\",E10*307,0)+IF(G10=\"Frie grundskoler\",E10*308,0)+IF(G10=\"Efterskoler\",E10*298,0)+IF(G10=\"Videregående uddannelse (VIP)\",600*E10,0)+IF(G10=\"Studentermedhjælper (HK)\",137.61*E10,0)+IF(G10=\"Studenterundervisere\",245.1*E10,0)+IF(G10=\"Videregående uddannelse (D-VIP og post doc)\",350*E10,0)+IF(G10=\"Honorar\",325*E10,0)+IF(G10=\"IT-studentermedhjælper (PROSA)\",160.64*E10,0)","v":0}]
[null,null,"I alt",null,null,null,null,null,null,null,null,null,null,{"$f":"SUM(N9:N10)","v":0}]
[null,"Transport:"]
[null,null,"Hvem rejser?",null,null,"Antal",null,"Begrundelse for rejseomkostninger",null,null,null,null,null,"Skriv beløb"]
[]
[]
[null,null,"I alt",null,null,null,null,null,null,null,null,null,null,{"$f":"SUM(N14:N15)","v":0}]
[]
[null,"Ansøgt beløb:"]
[null,null,"I alt",null,null,null,null,null,null,null,null,null,null,{"$f":"N11+N16","v":0}]